Cogmind - Beta 10 X2 @@@ ROGUE MODE // 2020.09.02 @ 18:10:49 Player: PlasticHeart Result: Destroyed by G-34 Mercenary with Small Laser Performance ------------- Evolutions (0) 0 Regions Visited (1) 200 Robots Destroyed (2) 10 Value Destroyed (40) 40 Prototype IDs (0) 0 Alien Tech Used (0) 0 Bonus (0) 0 TOTAL SCORE: 250 Bonus ------- None Cogmind --------- Core Integrity 0/250 Matter 300/300 Energy 100/100 System Corruption 0% Temperature Cool (15) Movement Core (550) Ox10 Location -10/Materials Parts ------- > --- POWER (1) -------- (None) > --- PROPULSION (2) --- (None) > --- UTILITY (2) ------ Heat Sink High-capacity Storage Unit > --- WEAPON (2) ------- (None) > --- INVENTORY (12) --- Light Ion Engine Light Ion Engine Small Storage Unit Peak State ------------ > --- POWER ------------ Light Ion Engine > --- PROPULSION ------- Wheel Wheel > --- UTILITY ---------- Small Storage Unit Small Storage Unit > --- WEAPON ----------- Medium Laser Medium Laser > --- INVENTORY -------- Light Ion Engine Medium Laser [Rating: 7] Favorites ----------- Power Light Ion Engine Engine Light Ion Engine Propulsion Wheel Wheel Wheel Utility High-capacity Storage Unit Device Heat Sink Storage High-capacity Storage Unit Weapon Medium Laser Energy Gun Medium Laser Build | -11 -10 ------- Run | Scr Mat Slots Evolved . | . . Power . | . . Propulsion . | . . Utility . | . . Weapon . | . . Parts Attached 10 | 7 3 Power 1 | 1 . Engine 1 | 1 . Core . | . . Reactor . | . . Propulsion 2 | 2 . Treads . | . . Leg . | . . Wheel 2 | 2 . Hover . | . . Flight . | . . Utility 4 | 2 2 Device 1 | . 1 Storage 3 | 2 1 Processor . | . . Hackware . | . . Protection . | . . Artifact . | . . Weapon 3 | 2 1 Energy Gun 3 | 2 1 Energy Cannon . | . . Ballistic Gun . | . . Ballistic Cannon . | . . Launcher . | . . Special Weapon . | . . Impact Weapon . | . . Slashing Weapon . | . . Piercing Weapon . | . . Special Melee Weapon . | . . Unidentified Prototypes . | . . Parts Lost 6 | . 6 Power 1 | . 1 Propulsion 2 | . 2 Utility . | . . Weapon 3 | . 3 Highest Loss Streak 5 | . 5 Average Slot Usage (%) 86 | . 86 Engine 13 | . 13 Wheel 24 | . 24 Device 6 | . 6 Storage 22 | . 22 Energy Gun 20 | . 20 Naked Turns . | . . Heaviest Build 43 | 15 43 Greatest Support 20 | 20 20 Greatest Overweight (x) 10 | . 10 Average Overweight (x) 1 | . 1 Largest Inventory Capacity 14 | 8 14 Average Capacity 10 | 5 12 Most Carried 4 | 4 4 Average Carried 2 | 2 2 Final Capacity 12 | 8 12 Final Carried 3 | 3 3 Class Distribution -------------------- 100% | Mutant Dominant Class ---------------- Mutant | -10/Materials Resources | -11 -10 ----------- Run | Scr Mat Matter Collected 270 | 270 . Remotely . | . . Salvage Created 130 | 100 30 Parts 6 | 2 4 Haulers Intercepted . | . . Recyclers Shooed . | . . Parts Field Recycled . | . . Retrieved Matter . | . . Parts Self-Destructed . | . . Prevented . | . . Kills | -11 -10 ------- Run | Scr Mat Combat Hostiles Destroyed 1 | . 1 Guns 1 | . 1 Classes Destroyed 2 | 1 1 Recycler 1 | 1 . Grunt 1 | . 1 Best Kill Streak 1 | 1 1 Combat Bots Only 1 | . 1 Max Kills in Single Turn 1 | 1 1 Gunslinging . | . . Exploded . | . . Melee . | . . Uniques/NPCs Destroyed . | . . Combat | -11 -10 -------- Run | Scr Mat Damage Taken 645 | . 645 Core 250 | . 250 Absorbed by Shields . | . . Core Remaining (%) 100 | 100 . Volleys Fired 15 | 3 12 Largest 2 | 2 2 Hottest 100 | 100 100 Shots Fired 28 | 6 22 Gun 28 | 6 22 Cannon . | . . Launcher . | . . Special . | . . Kinetic . | . . Thermal 28 | 6 22 Explosive . | . . Electromagnetic . | . . Robot Hit Streak 8 | 5 8 Robot Miss Streak 2 | . 2 Penetration Max . | . . Secondary Targets . | . . Shots Hit Robots 21 | 5 16 Core Hits 8 | 2 6 Critical Hits . | . . Critical Kills . | . . Critical Parts Destroyed . | . . Melee Attacks . | . . Impact . | . . Slashing . | . . Piercing . | . . Sneak Attacks . | . . Combat Hostiles . | . . Follow-up Attacks . | . . Damage Inflicted 298 | 63 235 Guns 298 | 63 235 Cannons . | . . Explosions . | . . Melee . | . . Ramming . | . . Kinetic . | . . Thermal 298 | 63 235 Explosive . | . . Electromagnetic . | . . Impact . | . . Slashing . | . . Piercing . | . . Highest Corruption . | . . Average Corruption . | . . Corruption Purged . | . . Overload Shots . | . . Overflow Damage . | . . Projectiles . | . . Explosions . | . . Melee . | . . Knockbacks . | . . Impact . | . . Kinetic . | . . Secondary . | . . Self-Inflicted Damage . | . . Shots . | . . Rammed . | . . Targets Rammed . | . . Kicked . | . . Crushed . | . . Highest Temperature 232 | 117 232 Average Temperature 92 | 62 101 Received Heat Transfer 366 | . 366 Siege Activations . | . . Robots Corrupted . | . . Combat Hostiles . | . . Parts Fried . | . . Impact Corruptions . | . . Robots Melted . | . . Combat Hostiles . | . . Parts Melted . | . . Heat Transferred 888 | 185 703 Parts Sabotaged . | . . Parts Stolen . | . . Parts Stripped . | . . Power Chain Reactions . | . . Missiles Intercepted . | . . Alert | -11 -10 ------- Run | Scr Mat Peak Influence 23 | 5 23 Average Influence 6 | 1 7 Maximum Alert Level . | . . Low Security (%) 100 | 100 100 Level 1 . | . . Level 2 . | . . Level 3 . | . . Level 4 . | . . Level 5 . | . . High Security . | . . Max Security . | . . Squads Dispatched . | . . Investigation . | . . Extermination . | . . Reinforcement . | . . Assault . | . . Garrison . | . . Intercept . | . . Construction Impeded . | . . Haulers Reinforced . | . . Stealth | -11 -10 --------- Run | Scr Mat Distress Signals 3 | . 3 Communications Jammed . | . . Distress Signals . | . . Times Spotted 8 | . 8 Peak Tracking Total 6 | . 6 Tactical Retreats 1 | . 1 Traps | -11 -10 ------- Run | Scr Mat Traps Triggered . | . . Indirectly . | . . Trap Hack Attempts . | . . Triggered . | . . Disarmed . | . . Reprogrammed . | . . Reused . | . . Traps Extracted . | . . Installed . | . . Triggered . | . . Machines | -11 -10 ---------- Run | Scr Mat Machines Disabled . | . . Max in Single Turn . | . . Machines Sabotaged . | . . Garrisons Compromised . | . . Overloaded Fab Kills . | . . Fab Network Shutdowns . | . . Hacking | -11 -10 --------- Run | Scr Mat Machines Accessed 1 | . 1 Terminals 1 | . 1 Fabricators . | . . Repair Stations . | . . Recycling Units . | . . Scanalyzers . | . . Garrison Access . | . . Total Hacks 2 | . 2 Successful 1 | . 1 Failed 1 | . 1 Catastrophic . | . . Database Lockouts . | . . Manual . | . . Terminals 2 | . 2 Fabricators . | . . Repair Stations . | . . Recycling Units . | . . Scanalyzers . | . . Garrison Access . | . . Terminal Hacks 1 | . 1 Hauler Manifests 1 | . 1 Fabricator Hacks . | . . Repair Station Hacks . | . . Recycling Unit Hacks . | . . Scanalyzer . | . . Garrison Access Hacks . | . . Unauthorized Hacks . | . . Terminals . | . . Fabricators . | . . Repair Stations . | . . Recycling Units . | . . Scanalyzers . | . . Garrison Access . | . . Data Cores Recovered . | . . Used . | . . Hacking Detections 1 | . 1 Full Trace Events . | . . Feedback Events . | . . Feedback Blocked . | . . Robot Schematics Acquired . | . . Robots Built . | . . Matter . | . . Time . | . . Total Robot Build Rating . | . . Part Schematics Acquired . | . . Parts Built . | . . Matter . | . . Time . | . . Total Part Build Rating . | . . Parts Repaired . | . . Time . | . . Parts Recycled . | . . Recycled Matter . | . . Retrieved Matter . | . . Retrieved Components . | . . Parts Scanalyzed . | . . Part Schematics Acquired . | . . Parts Damaged . | . . Bothacking | -11 -10 ------------ Run | Scr Mat Used RIF Installer . | . . Robots Hacked . | . . Non-combat . | . . Combat . | . . Robot Hacks Applied . | . . Relay Couplers Released . | . . Robots Rewired . | . . Allies Hacked . | . . Hacks Repelled . | . . Allies | -11 -10 -------- Run | Scr Mat Total Allies . | . . Largest Group . | . . Highest-Rated Group . | . . Highest-Rated Ally . | . . Total Orders . | . . Ally Attacks . | . . Total Damage . | . . Kills . | . . Allies Corrupted . | . . Allies Melted . | . . Intel | -11 -10 ------- Run | Scr Mat Robot Analysis Total . | . . Derelict Logs Recovered . | . . Drone Launches . | . . Drone Recoveries . | . . Exploration | -11 -10 ------------- Run | Scr Mat Turns Passed 182 | 44 138 Spaces Moved 108 | 29 79 Core 12 | 10 2 Treads . | . . Legs . | . . Wheels 96 | 19 77 Hover . | . . Flight . | . . Fastest Speed 50 | 50 80 Average Speed 98 | 69 108 Slowest Speed 550 | 80 550 Overloaded Moves . | . . Propulsion Burnouts . | . . Robots Hopped . | . . Cave-ins Triggered . | . . Exploration Rate (%) 11 | 4 19 Regions Visited 1 Branch Regions . Pre-discovered Areas . | . . Known Exits Taken . | . . Unknown Exits Taken 1 | 1 . Scrap Searched . | . . Spaces Dug . | . . Terrain Destroyed . | . . Melee . | . . Projectile . | . . AOE . | . . Actions | -11 -10 --------- Run | Scr Mat Total 154 | 45 109 Wait 13 | . 13 Move 107 | 28 79 Hop . | . . Pick Up 8 | 7 1 Fast Attach 3 | 3 . Attach 5 | 4 1 Detach . | . . Swap 2 | . 2 Drop 1 | . 1 Fire 15 | 3 12 Melee . | . . Ram . | . . Kick . | . . Crush . | . . Escape Stasis . | . . Rewire . | . . Trap . | . . Miscellaneous . | . . Route ------- -11/Scrapyard -10/Materials (discovered 1 exit: [*Min]) History --------- Turn | Location | Event 16 | -11/Scrapyard | Discovered new exit (range 16) 45 | -11/Scrapyard | Entered Materials 159 | -10/Materials | Core integrity fell below 50% 173 | -10/Materials | Discovered new exit (range 16) 180 | -10/Materials | Core integrity fell below 20% 183 | -10/Materials | Destroyed by G-34 Mercenary with Small Laser Last Messages --------------- (2 escorts) 00059_ Dropped Sml. Storage Unit. 00091_ G-34 Mercenary destroyed. 00100_ Med. Laser destroyed. 00114_ Acquired Heat Sink. 00116_ K-01 Serf collects debris. 00132_ Med. Laser destroyed. 00137_ G-34 Mercenary heat spikes uncontrollably. 00140_ G-34 Mercenary heat short circuits Broken Ion Engine. 00143_ G-34 Mercenary heat damages Heat Sink. 00150_ Destroyed Heat Sink. 00151_ Wheel destroyed. 00151_ U-05 Engineer builds a Door. 00152_ Med. Laser destroyed. 00153_ W-16 Scout sends out distress signal. 00170_ Lgt. Ion Engine destroyed. 00172_ Wheel destroyed. 00173_ EXIT=FOUND 00179_ Atomic Centrifuge disabled. 00183_ W-16 Scout sends out distress signal. Map ----- +----------------------------------------------------+ | ????????????????????????????????????????????????? | | ????????????????????????????????????????????????? | | ????????????????????????????????????????????????? | | ????????????????????????????????????????????????? | | ????????????????????????????????????????????????? | | ????????????????????????????????????????????????? | | ????????????????????????????????????????????????? | | ?????????????????????????????????????#####?###### | | ?????????????????????????????????????# #? # | | ?????????????????????????????????????# # # | | ?????????????????????????? ?????????# # # | | ?????????????????????????? ?????????# + # | | ?????????????????????????? ?????????# # # | | ?????????????????????????? ?????????# # # | | ?????????????????????????? "????????# ######## | | ?????????????????????????? "????????# # T # | | ???????????????? ???????? "????????# # ! # | | ???????????????# ???#??? ????????# # # | | ???????????????#t ####+###+########## + # | | ???????????????# # # | | ???????????????# u # """ # | | ???????????????# # """ # | | ??????????? # """ ######### # """ # | | ?????????? """ !# # # # | | ?????????? < " " # =#* # """ # | | ?????????? @w # [+% # """ # | | ?????????????????### g # """ # # """ # | | ???????????????????## """ggk# """ # # ??? | | ????????????????????# """ g # """ # ####???? | | ????????????????????# """ # # #??????? | | ????????????????????# # # #??????? | | ????????????????????# ######### #??????? | | ????????????????????# ###+####??????# #??????? | | ????????????????????# # #??????# #??????? | | ????????????????????# + #??????? #??????? | | ????????????????????#### """ #??????? #??????? | | ???????????????????????# """ #??????? #??????? | | ???????????????????????# """ #??????? #??????? | | ???????????????????????# #??????? #??????? | | ???????????????????????########??????? ???????? | | ????????????????????????????????????????????????? | | ????????????????????????????????????????????????? | | ????????????????????????????????????????????????? | | ????????????????????????????????????????????????? | | ????????????????????????????????????????????????? | | ????????????????????????????????????????????????? | | ????????????????????????????????????????????????? | | ????????????????????????????????????????????????? | | ????????????????????????????????????????????????? | | ????????????????????????????????????????????????? | +----------------------------------------------------+ Best States ------------- Heat Dissipation 35 Energy Generation 10 Energy Capacity 125 Matter Stores 300 Matter Capacity 300 Sight Range 16 Terrain Scan Density 10 Evasion (%) 50 Item Schematics ----------------- None Robot Schematics ------------------ None Fabricated ------------ Nothing Alien Tech Used ----------------- None Achievements -------------- None Challenges ------------ None Game ------ Seed CentriumFocalModule Manual? 0 Play Time 00:04:39 Cumulative 771.1 hours Start 2020.09.02 @ 18:08:06 End 2020.09.02 @ 18:10:49 Sessions 1 Manual Loads 0 Difficulty Rogue Special Mode None Game No. 409 Rogue 409 Adventurer 0 Explorer 0 Win Type - Total 63 Types 34/5/13/6/1/1/3 Lore% 90 Gallery% 89 Achievement% 75 Wizard Run 0 Options --------- ASCII 0 Keyboard 0 Movement Mouse Keybinds 0 Fullscreen 0 Font 32/Smallcaps Map View 76x50 Tactical HUD 1 Map Filters NONE Filters NONE Steam 0 RUN: 55311726-0174-497e-9d3a-3b78a60fcd4a